[Event "Titled Tuesday Blitz June 21 Early 2022"]
[White "Sapunov, Evgeny"]
[Black "D`Arruda, Ricardo D."]
[WhiteFideId "4126661"]
[BlackFideId "100692"]
[WhiteElo "2470"]
[BlackElo "2510"]
[Result "1-0"]
[Round "05"]
[TimeControl "180+1"]
[Date "2022.06.22"]
[WhiteClock "0:00:32"]
[BlackClock "0:00:04"]

1. c4 {[%clk 0:02:59]}  e5 {[%clk 0:02:56]} 2. Nf3 {[%clk 0:02:58]}  Nc6 {[%clk 0:02:55]} 3. Nc3 {[%clk 0:02:58]}  Nf6 {[%clk 0:02:55]} 4. e3 {[%clk 0:02:59]}  d6 {[%clk 0:02:54]} 5. Qc2 {[%clk 0:02:57]}  Be7 {[%clk 0:02:53]} 6. a3 {[%clk 0:02:57]}  O-O {[%clk 0:02:51]} 7. b4 {[%clk 0:02:57]}  Bg4 {[%clk 0:02:50]} 8. Be2 {[%clk 0:02:57]}  a5 {[%clk 0:02:49]} 9. b5 {[%clk 0:02:54]}  Nb8 {[%clk 0:02:49]} 10. O-O {[%clk 0:02:52]}  Nbd7 {[%clk 0:02:49]} 11. d4 {[%clk 0:02:53]}  exd4 {[%clk 0:02:47]} 12. exd4 {[%clk 0:02:51]}  Re8 {[%clk 0:02:47]} 13. h3 {[%clk 0:02:48]}  Bh5 {[%clk 0:02:47]} 14. Bf4 {[%clk 0:02:40]}  Bf8 {[%clk 0:02:45]} 15. Rfe1 {[%clk 0:02:37]}  Bg6 {[%clk 0:02:38]} 16. Bd3 {[%clk 0:02:34]}  Nb6 {[%clk 0:02:32]} 17. Bxg6 {[%clk 0:02:29]}  hxg6 {[%clk 0:02:31]} 18. Qd3 {[%clk 0:02:29]}  Qd7 {[%clk 0:02:22]} 19. a4 {[%clk 0:02:28]}  Qf5 {[%clk 0:02:19]} 20. Qxf5 {[%clk 0:02:26]}  gxf5 {[%clk 0:02:20]} 21. Nd2 {[%clk 0:02:26]}  g6 {[%clk 0:02:10]} 22. g3 {[%clk 0:02:19]}  Bg7 {[%clk 0:02:06]} 23. Kf1 {[%clk 0:02:08]}  Ne4 {[%clk 0:01:58]} 24. Ncxe4 {[%clk 0:02:00]}  fxe4 {[%clk 0:01:59]} 25. Be3 {[%clk 0:01:48]}  f5 {[%clk 0:01:39]} 26. Ra2 {[%clk 0:01:43]}  Kf7 {[%clk 0:01:25]} 27. h4 {[%clk 0:01:42]}  Bf6 {[%clk 0:01:22]} 28. Rc1 {[%clk 0:01:38]}  Rac8 {[%clk 0:01:17]} 29. Ke2 {[%clk 0:01:33]}  Nd7 {[%clk 0:01:13]} 30. Rac2 {[%clk 0:01:22]}  c6 {[%clk 0:01:13]} 31. Nb3 {[%clk 0:01:21]}  b6 {[%clk 0:01:05]} 32. c5 {[%clk 0:00:52]}  dxc5 {[%clk 0:01:00]} 33. dxc5 {[%clk 0:00:52]}  bxc5 {[%clk 0:00:55]} 34. Nxc5 {[%clk 0:00:49]}  Nxc5 {[%clk 0:00:54]} 35. Rxc5 {[%clk 0:00:48]}  Re6 {[%clk 0:00:25]} 36. b6 {[%clk 0:00:43]}  Ke7 {[%clk 0:00:12]} 37. Rxa5 {[%clk 0:00:43]}  Kd6 {[%clk 0:00:08]} 38. Rd1+ {[%clk 0:00:40]}  Ke7 {[%clk 0:00:06]} 39. Ra7+ {[%clk 0:00:40]}  Ke8 {[%clk 0:00:06]} 40. Bf4 {[%clk 0:00:33]}  Bd8 {[%clk 0:00:04]} 41. b7 {[%clk 0:00:32]} 1-0


[Site "https://www.chess.com"]

[Event "Titled Tuesday Blitz June 21 Early 2022"]
[White "Sarana, Alexey"]
[Black "Mahdavi, Reza"]
[WhiteFideId "24133795"]
[BlackFideId "12595926"]
[WhiteElo "2666"]
[BlackElo "2265"]
[Result "1-0"]
[Round "05"]
[TimeControl "180+1"]
[Date "2022.06.21"]
[WhiteClock "0:00:28"]
[BlackClock "0:00:59"]

1. d4 {[%clk 0:02:55]}  Nf6 {[%clk 0:02:59]} 2. c4 {[%clk 0:02:56]}  g6 {[%clk 0:02:59]} 3. Nc3 {[%clk 0:02:56]}  Bg7 {[%clk 0:03:00]} 4. e4 {[%clk 0:02:57]}  d6 {[%clk 0:03:00]} 5. Be2 {[%clk 0:02:57]}  O-O {[%clk 0:03:00]} 6. Be3 {[%clk 0:02:58]}  c5 {[%clk 0:02:59]} 7. d5 {[%clk 0:02:58]}  e6 {[%clk 0:02:57]} 8. Nf3 {[%clk 0:02:59]}  exd5 {[%clk 0:02:58]} 9. cxd5 {[%clk 0:03:00]}  Bg4 {[%clk 0:02:55]} 10. Nd2 {[%clk 0:03:00]}  Bxe2 {[%clk 0:02:55]} 11. Qxe2 {[%clk 0:03:00]}  Nbd7 {[%clk 0:02:53]} 12. O-O {[%clk 0:03:00]}  a6 {[%clk 0:02:52]} 13. a4 {[%clk 0:03:00]}  Re8 {[%clk 0:02:50]} 14. h3 {[%clk 0:02:55]}  Rb8 {[%clk 0:02:43]} 15. Bf4 {[%clk 0:02:55]}  Ne5 {[%clk 0:02:31]} 16. a5 {[%clk 0:02:55]}  Nh5 {[%clk 0:02:28]} 17. Bh2 {[%clk 0:02:55]}  b5 {[%clk 0:02:22]} 18. axb6 {[%clk 0:02:39]}  Qxb6 {[%clk 0:02:22]} 19. Bxe5 {[%clk 0:02:03]}  Bxe5 {[%clk 0:02:16]} 20. Nc4 {[%clk 0:02:04]}  Qb4 {[%clk 0:02:11]} 21. Nxe5 {[%clk 0:02:01]}  Rxe5 {[%clk 0:02:12]} 22. Rxa6 {[%clk 0:01:51]}  Qxb2 {[%clk 0:01:59]} 23. Rb1 {[%clk 0:01:33]}  Qxc3 {[%clk 0:01:59]} 24. Rxb8+ {[%clk 0:01:32]}  Kg7 {[%clk 0:02:00]} 25. Rxd6 {[%clk 0:00:59]}  Qc1+ {[%clk 0:01:25]} 26. Kh2 {[%clk 0:00:58]}  Qf4+ {[%clk 0:01:25]} 27. g3 {[%clk 0:00:58]}  Rxe4 {[%clk 0:01:24]} 28. Qb2+ {[%clk 0:00:57]}  Qe5 {[%clk 0:01:20]} 29. Rdd8 {[%clk 0:00:50]}  Rd4 {[%clk 0:01:14]} 30. Rg8+ {[%clk 0:00:44]}  Kh6 {[%clk 0:01:14]} 31. Qc1+ {[%clk 0:00:42]}  g5 {[%clk 0:01:15]} 32. Qxc5 {[%clk 0:00:41]}  Rd2 {[%clk 0:01:07]} 33. Qf8+ {[%clk 0:00:29]}  Ng7 {[%clk 0:01:05]} 34. Rb6+ {[%clk 0:00:29]}  Kh5 {[%clk 0:00:59]} 35. Qxf7# {[%clk 0:00:28]} 1-0


[Site "https://www.chess.com"]

[Event "Titled Tuesday Blitz June 21 Early 2022"]
[White "Shton, Roman"]
[Black "Mitrovic, Darko R"]
[WhiteFideId "14137461"]
[BlackFideId "927023"]
[WhiteElo "2013"]
[BlackElo "2150"]
[Result "1-0"]
[Round "05"]
[TimeControl "180+1"]
[Date "2022.06.22"]
[WhiteClock "0:01:43"]
[BlackClock "0:00:01"]

1. d4 {[%clk 0:03:00]}  Nf6 {[%clk 0:02:57]} 2. Nf3 {[%clk 0:03:00]}  b6 {[%clk 0:02:57]} 3. g3 {[%clk 0:03:00]}  Bb7 {[%clk 0:02:56]} 4. Bg2 {[%clk 0:03:01]}  c5 {[%clk 0:02:53]} 5. dxc5 {[%clk 0:02:58]}  bxc5 {[%clk 0:02:52]} 6. c4 {[%clk 0:02:59]}  g6 {[%clk 0:02:30]} 7. Nc3 {[%clk 0:02:58]}  Bg7 {[%clk 0:02:27]} 8. Be3 {[%clk 0:02:58]}  d6 {[%clk 0:02:21]} 9. Qb3 {[%clk 0:02:57]}  Bc6 {[%clk 0:02:12]} 10. O-O {[%clk 0:02:56]}  O-O {[%clk 0:02:11]} 11. Rfd1 {[%clk 0:02:50]}  Qc8 {[%clk 0:02:07]} 12. Nh4 {[%clk 0:02:39]}  Bxg2 {[%clk 0:02:06]} 13. Nxg2 {[%clk 0:02:40]}  Nc6 {[%clk 0:02:02]} 14. f3 {[%clk 0:02:40]}  Rb8 {[%clk 0:02:00]} 15. Qc2 {[%clk 0:02:40]}  Nd4 {[%clk 0:01:55]} 16. Bxd4 {[%clk 0:02:38]}  cxd4 {[%clk 0:01:55]} 17. Rxd4 {[%clk 0:02:38]}  Nd7 {[%clk 0:01:34]} 18. Re4 {[%clk 0:02:38]}  e6 {[%clk 0:01:09]} 19. Rd1 {[%clk 0:02:32]}  Nf6 {[%clk 0:00:51]} 20. Red4 {[%clk 0:02:22]}  Rd8 {[%clk 0:00:34]} 21. Ne3 {[%clk 0:02:16]}  Qc5 {[%clk 0:00:22]} 22. Na4 {[%clk 0:02:10]}  Qe5 {[%clk 0:00:11]} 23. Kf2 {[%clk 0:02:07]}  d5 {[%clk 0:00:08]} 24. cxd5 {[%clk 0:02:06]}  exd5 {[%clk 0:00:08]} 25. Ng4 {[%clk 0:01:57]}  Nxg4+ {[%clk 0:00:06]} 26. Rxg4 {[%clk 0:01:58]}  Re8 {[%clk 0:00:05]} 27. Qd3 {[%clk 0:01:56]}  Rbd8 {[%clk 0:00:04]} 28. Nc5 {[%clk 0:01:52]}  f5 {[%clk 0:00:03]} 29. Ra4 {[%clk 0:01:51]}  Qxb2 {[%clk 0:00:02]} 30. Rxa7 {[%clk 0:01:48]}  Qb6 {[%clk 0:00:02]} 31. Rxg7+ {[%clk 0:01:44]}  Kxg7 {[%clk 0:00:01]} 32. Qd4+ {[%clk 0:01:45]}  Kg8 {[%clk 0:00:01]} 33. a4 {[%clk 0:01:43]} 1-0


[Site "https://www.chess.com"]

[Event "Titled Tuesday Blitz June 21 Early 2022"]
[White "Taichman, Ori"]
[Black "Corrales Jimenez, Fidel"]
[WhiteFideId "2804069"]
[BlackFideId "3506690"]
[WhiteElo "2227"]
[BlackElo "2541"]
[Result "1-0"]
[Round "05"]
[TimeControl "180+1"]
[Date "2022.06.21"]
[WhiteClock "0:01:25"]
[BlackClock "0:00:03"]

1. e4 {[%clk 0:03:00]}  c5 {[%clk 0:02:21]} 2. Nf3 {[%clk 0:02:58]}  d6 {[%clk 0:02:21]} 3. d4 {[%clk 0:02:58]}  cxd4 {[%clk 0:02:22]} 4. Nxd4 {[%clk 0:02:58]}  Nf6 {[%clk 0:02:23]} 5. Nc3 {[%clk 0:02:58]}  a6 {[%clk 0:02:23]} 6. Bg5 {[%clk 0:02:58]}  e6 {[%clk 0:02:22]} 7. f4 {[%clk 0:02:58]}  Qc7 {[%clk 0:02:21]} 8. Qf3 {[%clk 0:02:57]}  b5 {[%clk 0:02:19]} 9. Bxf6 {[%clk 0:02:52]}  gxf6 {[%clk 0:02:20]} 10. e5 {[%clk 0:02:53]}  Bb7 {[%clk 0:02:20]} 11. Qh5 {[%clk 0:02:53]}  dxe5 {[%clk 0:02:08]} 12. Nxe6 {[%clk 0:02:53]}  Qe7 {[%clk 0:02:07]} 13. f5 {[%clk 0:02:48]}  Bh6 {[%clk 0:01:13]} 14. Qxh6 {[%clk 0:02:28]}  fxe6 {[%clk 0:01:13]} 15. fxe6 {[%clk 0:02:29]}  Qxe6 {[%clk 0:01:06]} 16. Qg7 {[%clk 0:02:22]}  Qf7 {[%clk 0:00:43]} 17. Qxh8+ {[%clk 0:02:20]}  Ke7 {[%clk 0:00:43]} 18. Bd3 {[%clk 0:02:04]}  e4 {[%clk 0:00:43]} 19. Bxe4 {[%clk 0:01:55]}  Nd7 {[%clk 0:00:10]} 20. Qxh7 {[%clk 0:01:50]}  Qxh7 {[%clk 0:00:04]} 21. Bxh7 {[%clk 0:01:51]}  b4 {[%clk 0:00:05]} 22. Ne2 {[%clk 0:01:40]}  Rh8 {[%clk 0:00:02]} 23. Bd3 {[%clk 0:01:40]}  Bxg2 {[%clk 0:00:02]} 24. Rg1 {[%clk 0:01:40]}  Rxh2 {[%clk 0:00:03]} 25. O-O-O {[%clk 0:01:40]}  Ne5 {[%clk 0:00:03]} 26. Bxa6 {[%clk 0:01:39]}  Bf3 {[%clk 0:00:03]} 27. Rde1 {[%clk 0:01:38]}  Be4 {[%clk 0:00:03]} 28. Nd4 {[%clk 0:01:26]}  Bh7 {[%clk 0:00:03]} 29. Bd3 {[%clk 0:01:25]} 1-0


[Site "https://www.chess.com"]

[Event "Titled Tuesday Blitz June 21 Early 2022"]
[White "Todorovic, Bojan"]
[Black "Yurovskykh, Oleksandr"]
[WhiteFideId "917087"]
[BlackFideId "14134020"]
[WhiteElo "2266"]
[BlackElo "2292"]
[Result "1-0"]
[Round "05"]
[TimeControl "180+1"]
[Date "2022.06.22"]
[WhiteClock "0:00:47"]
[BlackClock "0:00:03"]

1. d4 {[%clk 0:02:58]}  Nf6 {[%clk 0:02:59]} 2. c4 {[%clk 0:02:56]}  c5 {[%clk 0:02:59]} 3. d5 {[%clk 0:02:55]}  e5 {[%clk 0:02:59]} 4. Nc3 {[%clk 0:02:53]}  d6 {[%clk 0:03:00]} 5. e4 {[%clk 0:02:51]}  Nbd7 {[%clk 0:03:00]} 6. g3 {[%clk 0:02:44]}  g6 {[%clk 0:02:58]} 7. Bh3 {[%clk 0:02:37]}  h5 {[%clk 0:02:55]} 8. Nf3 {[%clk 0:02:36]}  Bh6 {[%clk 0:02:55]} 9. Ng5 {[%clk 0:02:36]}  Kf8 {[%clk 0:02:52]} 10. O-O {[%clk 0:02:32]}  Kg7 {[%clk 0:02:52]} 11. f4 {[%clk 0:02:32]}  Qe7 {[%clk 0:02:24]} 12. f5 {[%clk 0:02:20]}  Ng4 {[%clk 0:02:04]} 13. fxg6 {[%clk 0:01:41]}  fxg6 {[%clk 0:00:42]} 14. Rf7+ {[%clk 0:01:40]}  Qxf7 {[%clk 0:00:43]} 15. Nxf7 {[%clk 0:01:40]}  Bxc1 {[%clk 0:00:36]} 16. Rxc1 {[%clk 0:01:29]}  Kxf7 {[%clk 0:00:35]} 17. Bxg4 {[%clk 0:01:28]}  hxg4 {[%clk 0:00:32]} 18. Nb5 {[%clk 0:01:27]}  Ke7 {[%clk 0:00:19]} 19. Qxg4 {[%clk 0:01:25]}  Nf6 {[%clk 0:00:19]} 20. Qxg6 {[%clk 0:01:21]}  Rg8 {[%clk 0:00:18]} 21. Qh6 {[%clk 0:01:19]}  Bd7 {[%clk 0:00:17]} 22. Nxd6 {[%clk 0:01:07]}  Raf8 {[%clk 0:00:17]} 23. Nxb7 {[%clk 0:01:00]}  Rf7 {[%clk 0:00:16]} 24. Nxc5 {[%clk 0:00:56]}  Bg4 {[%clk 0:00:10]} 25. Rf1 {[%clk 0:00:51]}  Be2 {[%clk 0:00:02]} 26. d6+ {[%clk 0:00:47]}  Kxd6 {[%clk 0:00:01]} 27. Rxf6+ {[%clk 0:00:47]}  Rxf6 {[%clk 0:00:02]} 28. Qxf6+ {[%clk 0:00:47]}  Kxc5 {[%clk 0:00:03]} 29. Qxe5+ {[%clk 0:00:47]} 1-0


[Site "https://www.chess.com"]

[Event "Titled Tuesday Blitz June 21 Early 2022"]
[White "Topalov, Aleksandar"]
[Black "Malyi, Viacheslav"]
[WhiteFideId "925659"]
[BlackFideId "14123983"]
[WhiteElo "2179"]
[BlackElo "2270"]
[Result "0-1"]
[Round "05"]
[TimeControl "180+1"]
[Date "2022.06.22"]
[WhiteClock "0:00:03"]
[BlackClock "0:00:07"]

1. b3 {[%clk 0:02:56]}  c5 {[%clk 0:02:48]} 2. Bb2 {[%clk 0:02:55]}  d6 {[%clk 0:02:49]} 3. d4 {[%clk 0:02:55]}  cxd4 {[%clk 0:02:48]} 4. Qxd4 {[%clk 0:02:55]}  Nc6 {[%clk 0:02:49]} 5. Qd2 {[%clk 0:02:55]}  Nf6 {[%clk 0:02:49]} 6. c4 {[%clk 0:02:55]}  g6 {[%clk 0:02:46]} 7. Nc3 {[%clk 0:02:55]}  Bg7 {[%clk 0:02:47]} 8. g3 {[%clk 0:02:56]}  O-O {[%clk 0:02:47]} 9. Bg2 {[%clk 0:02:56]}  Be6 {[%clk 0:02:47]} 10. Nh3 {[%clk 0:02:52]}  Qa5 {[%clk 0:02:43]} 11. Nf4 {[%clk 0:02:49]}  Bd7 {[%clk 0:02:42]} 12. O-O {[%clk 0:02:47]}  Rfd8 {[%clk 0:02:35]} 13. Rfd1 {[%clk 0:02:46]}  a6 {[%clk 0:02:35]} 14. h3 {[%clk 0:02:25]}  Rab8 {[%clk 0:02:33]} 15. a3 {[%clk 0:02:14]}  b5 {[%clk 0:02:24]} 16. b4 {[%clk 0:02:14]}  Qc7 {[%clk 0:02:22]} 17. Ncd5 {[%clk 0:02:14]}  Nxd5 {[%clk 0:02:17]} 18. Nxd5 {[%clk 0:02:11]}  Qa7 {[%clk 0:02:17]} 19. cxb5 {[%clk 0:02:04]}  axb5 {[%clk 0:02:12]} 20. Rac1 {[%clk 0:02:02]}  Be8 {[%clk 0:02:00]} 21. Nf6+ {[%clk 0:01:32]}  Bxf6 {[%clk 0:01:57]} 22. Bxf6 {[%clk 0:01:32]}  exf6 {[%clk 0:01:58]} 23. Bxc6 {[%clk 0:01:32]}  Bxc6 {[%clk 0:01:53]} 24. Rxc6 {[%clk 0:01:31]}  Qxa3 {[%clk 0:01:47]} 25. Rxd6 {[%clk 0:01:30]}  Rxd6 {[%clk 0:01:46]} 26. Qxd6 {[%clk 0:01:31]}  Rf8 {[%clk 0:01:39]} 27. Rd4 {[%clk 0:01:29]}  f5 {[%clk 0:01:33]} 28. h4 {[%clk 0:01:26]}  h5 {[%clk 0:01:31]} 29. Rd5 {[%clk 0:01:17]}  Qc1+ {[%clk 0:01:27]} 30. Kg2 {[%clk 0:01:16]}  Qc4 {[%clk 0:01:27]} 31. Re5 {[%clk 0:01:06]}  f4 {[%clk 0:01:14]} 32. Rg5 {[%clk 0:01:02]}  Qe4+ {[%clk 0:01:05]} 33. Kg1 {[%clk 0:00:56]}  fxg3 {[%clk 0:01:00]} 34. Rxg3 {[%clk 0:00:54]}  Kg7 {[%clk 0:00:50]} 35. Qd3 {[%clk 0:00:46]}  Qxb4 {[%clk 0:00:43]} 36. Rg5 {[%clk 0:00:40]}  Qxh4 {[%clk 0:00:38]} 37. Qxb5 {[%clk 0:00:40]}  Qf4 {[%clk 0:00:35]} 38. Qe5+ {[%clk 0:00:38]}  Qxe5 {[%clk 0:00:34]} 39. Rxe5 {[%clk 0:00:39]}  Kf6 {[%clk 0:00:35]} 40. Ra5 {[%clk 0:00:38]}  Rb8 {[%clk 0:00:35]} 41. Kg2 {[%clk 0:00:38]}  Rb4 {[%clk 0:00:35]} 42. Ra6+ {[%clk 0:00:35]}  Kg7 {[%clk 0:00:33]} 43. Ra7 {[%clk 0:00:31]}  g5 {[%clk 0:00:32]} 44. f3 {[%clk 0:00:26]}  Kg6 {[%clk 0:00:30]} 45. Ra6+ {[%clk 0:00:22]}  f6 {[%clk 0:00:29]} 46. Rc6 {[%clk 0:00:21]}  Rb5 {[%clk 0:00:29]} 47. Rc8 {[%clk 0:00:20]}  h4 {[%clk 0:00:27]} 48. Rf8 {[%clk 0:00:19]}  Rb2 {[%clk 0:00:27]} 49. Kf2 {[%clk 0:00:19]}  Ra2 {[%clk 0:00:26]} 50. Re8 {[%clk 0:00:19]}  Ra1 {[%clk 0:00:26]} 51. Rf8 {[%clk 0:00:18]}  Rh1 {[%clk 0:00:25]} 52. Rh8 {[%clk 0:00:17]}  Rh2+ {[%clk 0:00:22]} 53. Kf1 {[%clk 0:00:17]}  Rh1+ {[%clk 0:00:23]} 54. Kf2 {[%clk 0:00:17]}  Rc1 {[%clk 0:00:23]} 55. Kg2 {[%clk 0:00:17]}  Rc7 {[%clk 0:00:23]} 56. Kf2 {[%clk 0:00:17]}  Re7 {[%clk 0:00:24]} 57. Rg8+ {[%clk 0:00:17]}  Kf7 {[%clk 0:00:22]} 58. Rh8 {[%clk 0:00:16]}  Kg7 {[%clk 0:00:23]} 59. Ra8 {[%clk 0:00:16]}  Kg6 {[%clk 0:00:23]} 60. Rh8 {[%clk 0:00:15]}  Kf5 {[%clk 0:00:23]} 61. Ra8 {[%clk 0:00:13]}  Rb7 {[%clk 0:00:23]} 62. Ra5+ {[%clk 0:00:12]}  Kg6 {[%clk 0:00:21]} 63. Ra6 {[%clk 0:00:12]}  Re7 {[%clk 0:00:22]} 64. Rb6 {[%clk 0:00:13]}  Re5 {[%clk 0:00:22]} 65. Rb4 {[%clk 0:00:12]}  Ra5 {[%clk 0:00:23]} 66. Rc4 {[%clk 0:00:12]}  Ra1 {[%clk 0:00:20]} 67. Rc8 {[%clk 0:00:12]}  Kf5 {[%clk 0:00:19]} 68. Rb8 {[%clk 0:00:10]}  Ra5 {[%clk 0:00:18]} 69. Rf8 {[%clk 0:00:09]}  Ra7 {[%clk 0:00:17]} 70. Re8 {[%clk 0:00:09]}  Kg6 {[%clk 0:00:17]} 71. Rg8+ {[%clk 0:00:09]}  Rg7 {[%clk 0:00:17]} 72. Rh8 {[%clk 0:00:09]}  f5 {[%clk 0:00:17]} 73. Ra8 {[%clk 0:00:09]}  g4 {[%clk 0:00:17]} 74. fxg4 {[%clk 0:00:07]}  fxg4 {[%clk 0:00:17]} 75. Ra5 {[%clk 0:00:07]}  Rf7+ {[%clk 0:00:15]} 76. Kg2 {[%clk 0:00:08]}  Rf5 {[%clk 0:00:16]} 77. Ra4 {[%clk 0:00:07]}  Kg5 {[%clk 0:00:15]} 78. Ra8 {[%clk 0:00:07]}  Re5 {[%clk 0:00:12]} 79. Rg8+ {[%clk 0:00:07]}  Kf4 {[%clk 0:00:13]} 80. Kf2 {[%clk 0:00:07]}  g3+ {[%clk 0:00:12]} 81. Kf1 {[%clk 0:00:07]}  Ra5 {[%clk 0:00:10]} 82. Kg2 {[%clk 0:00:05]}  Re5 {[%clk 0:00:08]} 83. Rf8+ {[%clk 0:00:03]}  Kg4 {[%clk 0:00:07]} 84. Rg8+ {[%clk 0:00:03]}  Rg5 {[%clk 0:00:07]} 85. Rh8 {[%clk 0:00:03]}  Rg6 {[%clk 0:00:07]} 86. Rh7 {[%clk 0:00:02]}  Rg8 {[%clk 0:00:07]} 87. Rh6 {[%clk 0:00:02]}  Rg7 {[%clk 0:00:07]} 88. Rh8 {[%clk 0:00:02]}  Rg5 {[%clk 0:00:06]} 89. Rh6 {[%clk 0:00:03]}  Re5 {[%clk 0:00:07]} 90. Rg6+ {[%clk 0:00:03]}  Kh5 {[%clk 0:00:06]} 91. Rg8 {[%clk 0:00:03]}  Rxe2+ {[%clk 0:00:07]} 0-1


[Site "https://www.chess.com"]

[Event "Titled Tuesday Blitz June 21 Early 2022"]
[White "Urquhart, Ed"]
[Black "Harvey, Marcus R"]
[WhiteFideId "2603748"]
[BlackFideId "400092"]
[WhiteElo "2184"]
[BlackElo "2485"]
[Result "0-1"]
[Round "05"]
[TimeControl "180+1"]
[Date "2022.06.22"]
[WhiteClock "0:00:07"]
[BlackClock "0:00:14"]

1. e4 {[%clk 0:03:00]}  c6 {[%clk 0:02:59]} 2. Bc4 {[%clk 0:03:00]}  d5 {[%clk 0:03:00]} 3. Bb3 {[%clk 0:03:00]}  dxe4 {[%clk 0:02:55]} 4. Qh5 {[%clk 0:03:00]}  g6 {[%clk 0:02:43]} 5. Qh4 {[%clk 0:03:00]}  Nf6 {[%clk 0:02:42]} 6. Nc3 {[%clk 0:03:00]}  Bf5 {[%clk 0:02:07]} 7. f3 {[%clk 0:02:59]}  exf3 {[%clk 0:02:06]} 8. Nxf3 {[%clk 0:03:00]}  e6 {[%clk 0:01:49]} 9. d4 {[%clk 0:03:00]}  h5 {[%clk 0:01:46]} 10. Bg5 {[%clk 0:02:58]}  Nbd7 {[%clk 0:01:46]} 11. Ne5 {[%clk 0:02:49]}  Be7 {[%clk 0:01:32]} 12. Nxd7 {[%clk 0:02:41]}  Nxd7 {[%clk 0:01:32]} 13. Bxe7 {[%clk 0:02:36]}  Qxe7 {[%clk 0:01:33]} 14. Qf4 {[%clk 0:02:33]}  e5 {[%clk 0:01:27]} 15. dxe5 {[%clk 0:02:21]}  Qxe5+ {[%clk 0:01:27]} 16. Qxe5+ {[%clk 0:02:21]}  Nxe5 {[%clk 0:01:28]} 17. O-O-O {[%clk 0:02:18]}  Ke7 {[%clk 0:01:25]} 18. Rde1 {[%clk 0:02:06]}  f6 {[%clk 0:01:23]} 19. h3 {[%clk 0:02:06]}  h4 {[%clk 0:01:22]} 20. Ne4 {[%clk 0:02:00]}  Rad8 {[%clk 0:01:15]} 21. Rhf1 {[%clk 0:01:50]}  Bxe4 {[%clk 0:01:04]} 22. Rxe4 {[%clk 0:01:49]}  g5 {[%clk 0:01:01]} 23. a4 {[%clk 0:01:22]}  a5 {[%clk 0:01:00]} 24. Rfe1 {[%clk 0:01:16]}  b6 {[%clk 0:00:52]} 25. Bc4 {[%clk 0:01:15]}  Rd6 {[%clk 0:00:49]} 26. Be2 {[%clk 0:01:12]}  Rhd8 {[%clk 0:00:49]} 27. b3 {[%clk 0:01:08]}  Rd4 {[%clk 0:00:45]} 28. Re3 {[%clk 0:01:07]}  Rf4 {[%clk 0:00:38]} 29. Bf3 {[%clk 0:01:07]}  c5 {[%clk 0:00:32]} 30. Rxe5+ {[%clk 0:00:57]}  fxe5 {[%clk 0:00:33]} 31. Rxe5+ {[%clk 0:00:58]}  Kf6 {[%clk 0:00:33]} 32. Re3 {[%clk 0:00:52]}  c4 {[%clk 0:00:29]} 33. Rc3 {[%clk 0:00:51]}  Rdd4 {[%clk 0:00:28]} 34. Kb2 {[%clk 0:00:46]}  Ke5 {[%clk 0:00:26]} 35. Re3+ {[%clk 0:00:46]}  Kd6 {[%clk 0:00:26]} 36. Re8 {[%clk 0:00:42]}  cxb3 {[%clk 0:00:26]} 37. cxb3 {[%clk 0:00:40]}  Kc7 {[%clk 0:00:17]} 38. Rg8 {[%clk 0:00:38]}  Rf5 {[%clk 0:00:17]} 39. Rg7+ {[%clk 0:00:37]}  Kd8 {[%clk 0:00:17]} 40. Kc3 {[%clk 0:00:33]}  Rd6 {[%clk 0:00:17]} 41. Rb7 {[%clk 0:00:26]}  Rc5+ {[%clk 0:00:17]} 42. Kb2 {[%clk 0:00:25]}  Kc8 {[%clk 0:00:17]} 43. Rg7 {[%clk 0:00:24]}  Rd2+ {[%clk 0:00:17]} 44. Kb1 {[%clk 0:00:19]}  Rf2 {[%clk 0:00:16]} 45. Re7 {[%clk 0:00:16]}  Rc3 {[%clk 0:00:14]} 46. Bd5 {[%clk 0:00:13]}  Rd3 {[%clk 0:00:15]} 47. Be6+ {[%clk 0:00:07]}  Kd8 {[%clk 0:00:14]} 0-1


[Site "https://www.chess.com"]

[Event "Titled Tuesday Blitz June 21 Early 2022"]
[White "Volkov, Maksim"]
[Black "Timofeev, Artyom"]
[WhiteFideId "54123070"]
[BlackFideId "4140419"]
[WhiteElo "2155"]
[BlackElo "2578"]
[Result "0-1"]
[Round "05"]
[TimeControl "180+1"]
[Date "2022.06.21"]
[WhiteClock "0:00:14"]
[BlackClock "0:00:49"]

1. d4 {[%clk 0:03:00]}  Nf6 {[%clk 0:02:59]} 2. c4 {[%clk 0:03:00]}  g6 {[%clk 0:02:59]} 3. g3 {[%clk 0:03:01]}  Bg7 {[%clk 0:02:58]} 4. Bg2 {[%clk 0:03:01]}  d5 {[%clk 0:02:59]} 5. cxd5 {[%clk 0:03:01]}  Nxd5 {[%clk 0:02:59]} 6. e4 {[%clk 0:03:02]}  Nb4 {[%clk 0:02:59]} 7. Ne2 {[%clk 0:02:59]}  Bxd4 {[%clk 0:02:54]} 8. O-O {[%clk 0:02:48]}  Bg7 {[%clk 0:02:42]} 9. Qb3 {[%clk 0:02:22]}  c5 {[%clk 0:02:33]} 10. Rd1 {[%clk 0:02:09]}  Qa5 {[%clk 0:02:25]} 11. Nbc3 {[%clk 0:01:55]}  O-O {[%clk 0:02:15]} 12. Be3 {[%clk 0:01:46]}  N8a6 {[%clk 0:01:57]} 13. Nf4 {[%clk 0:01:31]}  Nc6 {[%clk 0:01:49]} 14. Nce2 {[%clk 0:01:11]}  Qb4 {[%clk 0:01:42]} 15. Qxb4 {[%clk 0:00:59]}  Ncxb4 {[%clk 0:01:37]} 16. Rd2 {[%clk 0:00:59]}  e5 {[%clk 0:01:21]} 17. Nd5 {[%clk 0:00:55]}  Nxd5 {[%clk 0:01:21]} 18. exd5 {[%clk 0:00:54]}  Bd7 {[%clk 0:01:18]} 19. d6 {[%clk 0:00:52]}  Rab8 {[%clk 0:01:17]} 20. Nc3 {[%clk 0:00:49]}  b6 {[%clk 0:01:16]} 21. Bf1 {[%clk 0:00:46]}  Nb4 {[%clk 0:01:14]} 22. Nb5 {[%clk 0:00:38]}  Nc6 {[%clk 0:01:12]} 23. Bg2 {[%clk 0:00:31]}  Rfd8 {[%clk 0:01:10]} 24. Rad1 {[%clk 0:00:25]}  a5 {[%clk 0:00:57]} 25. a4 {[%clk 0:00:23]}  Nd4 {[%clk 0:00:54]} 26. Bxd4 {[%clk 0:00:20]}  exd4 {[%clk 0:00:50]} 27. Na7 {[%clk 0:00:14]}  Bxa4 {[%clk 0:00:49]} 0-1


[Site "https://www.chess.com"]